Cogmind - Beta 13 @@@ ROGUE MODE // 2024.04.12 @ 09:10:48 Player: Bean Result: Destroyed by Y-45 Defender with Beam Rifle Performance ------------- Evolutions (2) 1000 Regions Visited (4) 800 Robots Destroyed (42) 210 Value Destroyed (1175) 1175 Prototype IDs (1) 20 Alien Tech Used (0) 0 Bonus (0) 0 TOTAL SCORE: 3205 Bonus ------- None Cogmind --------- Core Integrity 0/550 Matter 275/300 Energy 350/350 System Corruption 22% Temperature Cool (9) Movement Core (1450) Ox28 Location -8/Storage Parts ------- > --- POWER (2) -------- (None) > --- PROPULSION (2) --- (None) > --- UTILITY (5) ------ Huge Storage Unit High-capacity Battery Propulsion Shielding Propulsion Shielding > --- WEAPON (2) ------- (None) > --- INVENTORY (25) --- Heat Sink Structural Scanner Melee Analysis Suite Melee Analysis Suite Melee Analysis Suite Melee Analysis Suite Propulsion Shielding Light Assault Rifle Mining Laser Peak State ------------ > --- POWER ------------ Light Ion Engine > --- PROPULSION ------- Light Treads Light Treads > --- UTILITY ---------- Huge Storage Unit Structural Scanner Terrain Scan Processor Propulsion Shielding > --- WEAPON ----------- Shock Rifle Shock Rifle > --- INVENTORY -------- Heat Sink Small Storage Unit High-capacity Battery High-capacity Battery Structural Scanner Melee Analysis Suite Melee Analysis Suite Melee Analysis Suite Melee Analysis Suite Propulsion Shielding Propulsion Shielding Shock Rifle Shock Rifle Small Laser Small Laser Small Laser Particle Gun Light Assault Rifle EMP Blaster Mining Laser [Rating: 17] Favorites ----------- Power Light Ion Engine Engine Light Ion Engine Power Core Light Nuclear Core Propulsion Light Treads Treads Light Treads Hover Unit Backup Propulsion I Utility Structural Scanner Device Structural Scanner Storage High-capacity Battery Processor Terrain Scan Processor Protection Propulsion Shielding Weapon Shock Rifle Energy Gun Shock Rifle Ballistic Gun Light Assault Rifle Launcher EMP Blaster Build | -11 -10 -9 -8 -8 ------- Run | Yrd Mat Mat Mat Sto Slots Evolved 4 | . . 2 2 . Power 1 | . . . 1 . Propulsion . | . . . . . Utility 3 | . . 2 1 . Weapon . | . . . . . Parts Attached 53 | 6 8 18 7 14 Power 6 | 1 1 1 . 3 Engine 5 | 1 . 1 . 3 Core 1 | . 1 . . . Reactor . | . . . . . Propulsion 8 | 2 1 1 2 2 Treads 8 | 2 1 1 2 2 Leg . | . . . . . Wheel . | . . . . . Hover . | . . . . . Flight . | . . . . . Utility 17 | 1 4 5 1 6 Device 4 | . 1 1 . 2 Storage 8 | 1 3 1 1 2 Processor 1 | . . 1 . . Hackware . | . . . . . Protection 4 | . . 2 . 2 Artifact . | . . . . . Weapon 22 | 2 2 11 4 3 Energy Gun 16 | 1 2 8 3 2 Energy Cannon . | . . . . . Ballistic Gun 2 | 1 . . . 1 Ballistic Cannon . | . . . . . Launcher 4 | . . 3 1 . Special Weapon . | . . . . . Impact Weapon . | . . . . . Slashing Weapon . | . . . . . Piercing Weapon . | . . . . . Special Melee Weapon . | . . . . . Unidentified Prototypes 1 | . . 1 . . Corrupted Parts 3 | . . . 2 1 System Corruption 21 | . . . 16 5 Parts Lost 31 | . 3 9 3 16 Power 5 | . 1 2 . 2 Propulsion 9 | . 1 3 . 5 Utility 5 | . . . . 5 Weapon 12 | . 1 4 3 4 Highest Loss Streak 9 | . 2 4 2 9 To Critical Strikes . | . . . . . Average Slot Usage (%) 84 | . 93 92 63 83 Engine 7 | . 8 7 . 13 Core 1 | . 4 1 . . Treads 14 | . 26 17 2 9 Device 10 | . 13 11 9 8 Storage 19 | . 14 14 27 26 Processor 6 | . . 8 9 8 Protection 4 | . . 10 . . Energy Gun 13 | . 14 15 16 7 Ballistic Gun 3 | . 9 . . 6 Launcher 2 | . . 6 . . Naked Turns . | . . . . . Heaviest Build 101 | 13 90 94 95 101 Greatest Support 40 | 40 40 40 40 40 Greatest Overweight (x) 33 | . 2 30 31 33 Average Overweight (x) 4 | . . 3 22 10 Largest Inventory Capacity 25 | 8 25 25 25 25 Average Capacity 22 | 7 12 25 25 25 Most Carried 21 | 5 13 21 20 14 Average Carried 13 | 2 7 15 17 11 Final Capacity 25 | 8 25 25 25 25 Final Carried 19 | 2 13 19 14 9 Class Distribution -------------------- 60% | Mutant 39% | Scavenger-Mutant Dominant Class ---------------- Mutant | -10/Materials Scavenger-Mutant | -9/Materials Mutant | -8/Materials Scavenger-Mutant | -8/Storage Resources | -11 -10 -9 -8 -8 ----------- Run | Yrd Mat Mat Mat Sto Matter Collected 825 | 185 254 203 83 100 Remotely . | . . . . . Salvage Created 1643 | . 659 707 180 97 Parts 110 | . 39 47 12 12 Haulers Intercepted 1 | . 1 . . . Recyclers Shooed 3 | . . 3 . . Parts Field Recycled . | . . . . . Retrieved Matter . | . . . . . Parts Self-Destructed . | . . . . . Prevented . | . . . . . Kills | -11 -10 -9 -8 -8 ------- Run | Yrd Mat Mat Mat Sto Combat Hostiles Destroyed 31 | . 13 12 3 3 Guns 26 | . 13 8 2 3 AOE 5 | . . 4 1 . Classes Destroyed 9 | . 3 6 . . Builder 3 | . . 1 1 1 Tunneler 2 | . . 2 . . Hauler 1 | . 1 . . . Recycler 1 | . . 1 . . Watcher 4 | . 2 2 . . Swarmer 5 | . . 3 . 2 Grunt 20 | . 13 5 2 . Duelist 1 | . . 1 . . Sentry 5 | . . 3 1 1 Best Kill Streak 5 | . 4 5 2 2 Combat Bots Only 3 | . 3 2 1 2 Max Kills in Single Turn 1 | . 1 1 1 1 Gunslinging . | . . . . . Exploded 1 | . . 1 1 . Melee . | . . . . . Uniques/NPCs Destroyed . | . . . . . Combat | -11 -10 -9 -8 -8 -------- Run | Yrd Mat Mat Mat Sto Hostile Shots Fired 355 | . 75 87 26 167 Missed 93 | . 16 28 12 37 Damage Taken 3592 | . 747 882 282 1681 Core 781 | . 116 113 34 518 Absorbed by Shields . | . . . . . Redirected to Shielding 51 | . . 51 . . Core Remaining (%) 74 | 100 53 71 . . Volleys Fired 167 | . 49 69 21 28 Largest 2 | . 2 2 2 2 Hottest 100 | . 85 100 100 86 Shots Fired 264 | . 87 93 39 45 Gun 249 | . 87 82 35 45 Cannon . | . . . . . Launcher 15 | . . 11 4 . Special . | . . . . . Kinetic 51 | . 38 . . 13 Thermal 106 | . 12 37 25 32 Explosive . | . . . . . Electromagnetic 107 | . 37 56 14 . Robot Hit Streak 12 | . 10 7 12 6 Robot Miss Streak 4 | . 4 3 2 4 Penetration Max . | . . . . . Secondary Targets 2 | . 2 . . . Max Gunslinging Chain 1 | . 1 . . . Shots Hit Robots 156 | . 52 56 26 22 Core Hits 72 | . 25 27 11 9 Critical Kills . | . . . . . Critical Parts Destroyed 1 | . . . . 1 Critical Strikes 1 | . . . . 1 Destroy 1 | . . . . 1 Melee Attacks . | . . . . . Impact . | . . . . . Slashing . | . . . . . Piercing . | . . . . . Sneak Attacks . | . . . . . Combat Hostiles . | . . . . . Follow-up Attacks . | . . . . . Damage Inflicted 2876 | . 830 1266 529 251 Guns 2203 | . 830 817 305 251 Cannons . | . . . . . Explosions 661 | . . 437 224 . Melee . | . . . . . Ramming 12 | . . 12 . . Kinetic 355 | . 266 . . 89 Thermal 1046 | . 182 482 220 162 Explosive . | . . . . . Electromagnetic 1463 | . 382 772 309 . Impact . | . . . . . Slashing . | . . . . . Piercing . | . . . . . Highest Corruption 22 | . . 1 16 22 Average Corruption 10 | . . 1 15 21 Corruption Purged . | . . . . . Corruption Blocked . | . . . . . Effects 51 | . . 6 6 39 Message Errors 7 | . . 1 1 5 Matter Fused 10 | . . 2 1 7 Heat Flow Errors 8 | . . . . 8 Energy Discharges 2 | . . . . 2 Parts Rejected 2 | . . . 1 1 Data Loss (minor) 7 | . . 1 1 5 Data Loss (major) 3 | . . 1 1 1 Misfires 6 | . . 1 1 4 Alerts 1 | . . . . 1 Misdirections 1 | . . . . 1 Weapon Failures 4 | . . . . 4 Overload Shots . | . . . . . Overflow Damage 24 | . . . 24 . Projectiles . | . . . . . Explosions 24 | . . . 24 . Melee . | . . . . . Knockbacks . | . . . . . Impact . | . . . . . Kinetic . | . . . . . Secondary . | . . . . . Self-Inflicted Damage 101 | . . 37 64 . Shots 5 | . . 2 3 . Rammed 2 | . . 2 . . Targets Rammed 2 | . . 2 . . Kicked . | . . . . . Crushed . | . . . . . Highest Temperature 379 | . 272 210 22 379 Average Temperature 81 | . 79 47 11 148 Received Heat Transfer 1239 | . 420 252 153 414 Effects 2 | . . . . 2 Shutdowns 1 | . . . . 1 Energy Bleed 1 | . . . . 1 Siege Activations . | . . . . . Robots Corrupted . | . . . . . Combat Hostiles . | . . . . . Parts Fried 4 | . 1 2 1 . Impact Corruptions . | . . . . . Robots Melted . | . . . . . Combat Hostiles . | . . . . . Parts Melted 1 | . . 1 . . Heat Transferred 2520 | . 407 1082 500 531 Parts Sabotaged . | . . . . . Parts Stolen . | . . . . . Parts Stripped . | . . . . . Power Chain Reactions 6 | . . 5 1 . Alert | -11 -10 -9 -8 -8 ------- Run | Yrd Mat Mat Mat Sto Peak Influence 251 | . 150 251 75 57 Initial 52 | . . 52 49 31 Average 55 | . 46 81 40 36 Maximum Alert Level 1 | . . 1 . . Low Security (%) 96 | 100 100 91 100 100 Level 1 3 | . . 8 . . Level 2 . | . . . . . Level 3 . | . . . . . Level 4 . | . . . . . Level 5 . | . . . . . High Security . | . . . . . Max Security . | . . . . . Squads Dispatched 6 | . 3 2 1 . Investigation 4 | . 2 1 1 . Extermination . | . . . . . Reinforcement 2 | . 1 1 . . Assault . | . . . . . Garrison . | . . . . . Intercept . | . . . . . Searches Triggered . | . . . . . Construction Impeded 1 | . . 1 . . Haulers Reinforced . | . . . . . Active Scanning Responses . | . . . . . Cargo Convoy Interrupts . | . . . . . Stealth | -11 -10 -9 -8 -8 --------- Run | Yrd Mat Mat Mat Sto Distress Signals 3 | . 2 . . 1 Communications Jammed . | . . . . . Distress Signals . | . . . . . Times Spotted 52 | . 20 21 4 7 Peak Tracking Total 5 | . 5 5 3 3 Tactical Retreats 7 | . 2 4 1 . Traps | -11 -10 -9 -8 -8 ------- Run | Yrd Mat Mat Mat Sto Traps Triggered 5 | . . 2 . 3 Indirectly 1 | . . 1 . . Trap Hack Attempts . | . . . . . Triggered . | . . . . . Disarmed . | . . . . . Reprogrammed . | . . . . . Reused . | . . . . . Traps Extracted . | . . . . . Installed . | . . . . . Triggered . | . . . . . Machines | -11 -10 -9 -8 -8 ---------- Run | Yrd Mat Mat Mat Sto Machines Disabled 2 | . . . 2 . Max in Single Turn 2 | . . . 2 . Machines Repaired . | . . . . . Machines Dismantled . | . . . . . Machines Sabotaged . | . . . . . Overloaded Fab Kills . | . . . . . Hacking | -11 -10 -9 -8 -8 --------- Run | Yrd Mat Mat Mat Sto Machines Accessed 12 | . 3 4 2 3 Terminals 8 | . 3 3 . 2 Fabricators . | . . . . . Repair Stations 1 | . . . . 1 Recycling Units 2 | . . 1 1 . Scanalyzers 1 | . . . 1 . Garrison Access . | . . . . . Total Hacks 31 | . 8 12 6 5 Successful 16 | . 3 5 6 2 Failed 15 | . 5 7 . 3 Catastrophic 2 | . 1 . . 1 Database Lockouts . | . . . . . Manual 21 | . 8 9 1 3 Terminals 21 | . 8 9 . 4 Fabricators . | . . . . . Repair Stations 1 | . . . . 1 Recycling Units 4 | . . 3 1 . Scanalyzers 5 | . . . 5 . Garrison Access . | . . . . . Terminal Hacks 4 | . 1 2 . 1 Record 2 | . . 2 . . Open Door 1 | . . . . 1 Unreport Threat 1 | . 1 . . . Fabricator Hacks . | . . . . . Repair Station Hacks 1 | . . . . 1 Refit 1 | . . . . 1 Recycling Unit Hacks 1 | . . 1 . . Retrieve Components 1 | . . 1 . . Scanalyzer 5 | . . . 5 . Insert Component 2 | . . . 2 . Analyze 3 | . . . 3 . Garrison Access Hacks . | . . . . . Unauthorized Hacks 5 | . 2 2 1 . Terminals 3 | . 2 1 . . Botnet 3 | . 2 1 . . Fabricators . | . . . . . Repair Stations . | . . . . . Recycling Units 2 | . . 1 1 . Mask 2 | . . 1 1 . Scanalyzers . | . . . . . Garrison Access . | . . . . . Data Cores Recovered . | . . . . . Used . | . . . . . Hacking Detections 8 | . 2 4 1 1 Full Trace Events 4 | . 1 2 1 . Feedback Events 1 | . . 1 . . Corruption 1 | . . 1 . . Feedback Blocked . | . . . . . Robot Schematics Acquired . | . . . . . Robots Built . | . . . . . Authchips . | . . . . . Time . | . . . . . Total Robot Build Rating . | . . . . . Part Schematics Acquired 2 | . . . 2 . Parts Built . | . . . . . Authchips . | . . . . . Time . | . . . . . Total Part Build Rating . | . . . . . Parts Repaired . | . . . . . Time . | . . . . . Parts Recycled . | . . . . . Recycled Matter . | . . . . . Retrieved Matter . | . . . . . Retrieved Components 9 | . . 9 . . Parts Scanalyzed 2 | . . . 2 . Part Schematics Acquired 2 | . . . 2 . Parts Damaged . | . . . . . Bothacking | -11 -10 -9 -8 -8 ------------ Run | Yrd Mat Mat Mat Sto Used RIF Installer . | . . . . . Robots Hacked . | . . . . . Non-combat . | . . . . . Combat . | . . . . . Robot Hacks Applied . | . . . . . Relay Couplers Released . | . . . . . Fabnet Peak Effective % . | . . . . . Robots Rewired . | . . . . . Allies Hacked . | . . . . . Hacks Repelled . | . . . . . Allies | -11 -10 -9 -8 -8 -------- Run | Yrd Mat Mat Mat Sto Total Allies . | . . . . . Largest Group . | . . . . . Highest-Rated Group . | . . . . . Highest-Rated Ally . | . . . . . Total Orders . | . . . . . Ally Attacks . | . . . . . Total Damage . | . . . . . Kills . | . . . . . Allies Corrupted . | . . . . . Allies Melted . | . . . . . Intel | -11 -10 -9 -8 -8 ------- Run | Yrd Mat Mat Mat Sto Robot Analysis Total . | . . . . . Derelict Logs Recovered . | . . . . . Drone Launches 4 | . . . . 4 Drone Recoveries 1 | . . . . 1 Exploration | -11 -10 -9 -8 -8 ------------- Run | Yrd Mat Mat Mat Sto Turns Passed 4167 | 65 756 1556 911 879 Spaces Moved 886 | 40 313 360 70 103 Core 96 | 11 . 14 49 22 Treads 775 | 29 313 346 21 66 Legs . | . . . . . Wheels . | . . . . . Hover 15 | . . . . 15 Flight . | . . . . . Fastest Speed 50 | 50 160 320 320 320 Average Speed 411 | 129 190 376 1208 772 Slowest Speed 1700 | 160 320 1550 1600 1700 Overloaded Moves . | . . . . . Propulsion Burnouts . | . . . . . Robots Hopped . | . . . . . Cave-ins Triggered . | . . . . . Exploration Rate (%) 23 | 3 58 27 8 20 Regions Visited 4 Branch Regions 1 Pre-discovered Areas . | . . . . . Known Exits Taken . | . . . . . Unknown Exits Taken 4 | 1 1 1 1 . Scrap Searched . | . . . . . Spaces Dug . | . . . . . Terrain Destroyed 19 | . . 17 2 . Melee . | . . . . . Projectile . | . . . . . AOE 19 | . . 17 2 . Terrain Rammed . | . . . . . Walls Destroyed . | . . . . . Machines Disabled . | . . . . . Actions | -11 -10 -9 -8 -8 --------- Run | Yrd Mat Mat Mat Sto Total 1167 | 53 385 474 99 156 Wait 9 | . . 8 . 1 Move 882 | 39 312 359 69 103 Hop . | . . . . . Pick Up 48 | 8 15 16 2 7 Fast Attach . | . . . . . Attach 37 | 6 3 11 7 10 Detach 1 | . . 1 . . Swap 17 | . 5 8 . 4 Drop 4 | . 1 . . 3 Fire 167 | . 49 69 21 28 Melee . | . . . . . Ram . | . . . . . Kick . | . . . . . Crush 2 | . . 2 . . Escape Stasis . | . . . . . Rewire . | . . . . . Trap . | . . . . . Miscellaneous . | . . . . . Route ------- -11/Scrapyard -10/Materials (discovered 3 exits: *Mat x2 / [Sub]) -9/Materials -8/Materials -8/Storage History --------- Turn | Location | Event 4 | -11/Scrapyard | Discovered new exit (range 15) 66 | -11/Scrapyard | Entered Materials 78 | -10/Materials | Discovered new exit (range 7) 295 | -10/Materials | Discovered new exit (range 15) 315 | -10/Materials | Build established: Mutant 710 | -10/Materials | Discovered new exit (range 5) 822 | -10/Materials | Entered another Materials area 822 | -9/Materials | Evolved 2 slots: Utility x2 1544 | -9/Materials | Build established: Scavenger-Mutant 1806 | -9/Materials | Discovered new exit (range 10) 2099 | -9/Materials | Lost 4 parts (1p1n2w) 2338 | -9/Materials | Build established: Mutant 2378 | -9/Materials | Entered another Materials area 2378 | -8/Materials | Evolved 2 slots: Power x1, Utility x1 2875 | -8/Materials | Discovered new exit (range 16) 3174 | -8/Materials | System corruption reached 10% 3289 | -8/Materials | Entered Storage 3360 | -8/Storage | Lost 5 parts (2n3w) 3708 | -8/Storage | Build established: Scavenger-Mutant 4105 | -8/Storage | Core integrity fell below 50% 4155 | -8/Storage | Core integrity fell below 20% 4168 | -8/Storage | Destroyed by Y-45 Defender with Beam Rifle Last Messages --------------- Beam Rifle destroyed. Critical hit (Burn: +37). Backup Power I destroyed. Structural Scanner destroyed. Critical hit (Burn: +37). Terrain Scan Processor destroyed. Hcp. Battery destroyed. Drone released from Drone Bay. Imp. Ion Engine destroyed. Drone released from Drone Bay. Drone destroyed. System corrupted: Heat flow error (+130). Drone Bay destroyed. Critical hit (Burn: +37). Acquired Drone Bay. Drone released from Drone Bay. Drone destroyed. System corrupted: Heat flow error (+296). Drone retrieved by Drone Bay. Drone Bay destroyed. Map ----- +----------------------------------------------------+ | ???## """"" # ###????????????? | | ???## # ! ###????????????? | | ???########### ###????????????? | | ???########### ###????????????? | | ???????????? # ##?????????????? | | ???????????? # ##?????????????? | | ???????????? # ###????????????? | | ???????????? + ###????????????? | | ????????????## "##????????????? | | ????????????## T##????????????? | | ????????????## "##????????????? | | ????????????## ###????????????? | | ????????????## ###????????????? | | ????????????## # ?????????????? | | ????????????## # ?????????????? | | ????????????## # ?????????????? | | ????????????## # ?????????????? | | ????????????## + ?????????????? | | ????????????## # ?????????????? | | ????????????## # ?????????????? | | ????????????## !# ?????????????? | | ????????????## =%# ##???? | | ??????????#### =|############???? | | ?????#########[ ?? | | ?????#######T# ?? | | ?????##!@!Y#%+ ?? | | ?????## % Y ###+#+#########+#??? | | ?????##!!!!# ## # ??? | | ?????##########?? ????????????? | | ?????##########?? ???????????? | | ?????????????????? ??????????? | | ?????????????????? # ???????? | | ??????????????????? # ???????? | | ??????????????????? # ???????? | | ???????????????????? # ???????? | | ???????????????????? # ???????? | | ??????????????????????###???????? | | | | | | | | | | | | | | | | | | | | | | | | | | | +----------------------------------------------------+ Best States ------------- Heat Dissipation 31 Energy Generation 16 Energy Capacity 765 Matter Stores 300 Matter Capacity 300 Sight Range 16 Terrain Scan Density 85 Propulsion Shielding 33 Evasion (%) 50 Recoil Reduction 2 Item Schematics ----------------- Particle Gun | -8/Materials | Scanalyzed Lgt. Treads | -8/Materials | Scanalyzed Robot Schematics ------------------ None Fabricated ------------ Nothing Alien Tech Used ----------------- None Achievements -------------- None Challenges ------------ None Game ------ Seed MomentumHybridSpoofer Manual? 0 Play Time 00:21:31 Cumulative 12.5 hours Start 2024.04.12 @ 08:48:42 End 2024.04.12 @ 09:10:48 Sessions 1 Manual Loads 0 Difficulty Rogue Special Mode None Game No. 31 Rogue 31 Adventurer 0 Explorer 0 Win Type - Total 0 Types 0/0/0/0/0/0/0/0/0 Lore% 19 Gallery% 23 Achievement% 21 Wizard Run 0 Options --------- Layout 2 ASCII 0 Keyboard 0 Movement Numpad Keybinds 0 Fullscreen 1 Font 24/Smallcaps Map View 50x44 Zoom Use 0% Tactical HUD 0 Map Filters NONE Filters NONE Steam 1 RUN: 1f586a8b-3516-40b1-947c-7bb36ae3ae62